bitfinex/quotes_SOLUSD_20250402
["timestamp","ask_amount","ask_price","bid_price","bid_amount"]
[1743563723911,7.991,125.14,125.13,0.063]
[1743563725582,18.19340422,125.14,125.13,0.063]
[1743563728118,18.1944835,125.14,125.13,0.063]
[1743563731190,36.84413236,125.14,125.13,0.063]
[1743563734010,117.8284555,125.14,125.13,0.063]
[1743563734309,117.68629393,125.14,125.13,0.063]
[1743563734513,124.8084555,125.14,125.13,0.063]
[1743563739522,117.8284555,125.14,125.13,0.063]
[1743563744423,117.54413236,125.14,125.13,0.063]
[1743563750535,0.28432314,125.12,125.11,0.063]
[1743563750725,0.28432314,125.11,125.1,0.063]
[1743563751037,51.30174064,125.11,125.1,0.063]
[1743563752213,59.29464064,125.11,125.1,0.063]
[1743563752810,18.1963835,125.11,125.1,0.063]
[1743563753010,36.84603236,125.11,125.1,0.063]
[1743563754619,117.54603236,125.11,125.1,0.063]
[1743563756040,98.8963835,125.11,125.1,0.063]
[1743563758839,88.6929,125.11,125.1,0.063]
[1743563759140,80.7,125.11,125.1,0.063]
[1743563759849,1.80022314,125.15,125.1,0.063]
[1743563759850,14.79432384,125.16,125.11,0.28432314]
[1743563760146,14.79432384,125.16,125.11,18.933972]
[1743563760326,14.79432384,125.16,125.15,8.0465]
[1743563760525,19.77262931,125.17,125.16,18.933972]
[1743563761344,19.77262931,125.17,125.16,25.18057477]
[1743563762035,19.77262931,125.17,125.16,33.17027477]
[1743563763143,19.77262931,125.17,125.16,26.923672]
[1743563763640,19.77262931,125.17,125.16,33.37675297]
[1743563763846,19.77262931,125.17,125.16,18.933972]
[1743563765942,19.77262931,125.17,125.16,25.2737484]
[1743563768455,19.77262931,125.17,125.16,18.933972]
[1743563769526,19.77262931,125.17,125.16,107.823672]
[1743563770034,19.77262931,125.17,125.16,99.833972]
[1743563770837,19.77262931,125.17,125.15,13.4886]
[1743563773958,19.77262931,125.17,125.15,6.96]
[1743563774164,27.76172931,125.17,125.13,87.86]
[1743563775067,19.77262931,125.17,125.13,6.96]
[1743563777874,19.77262931,125.17,125.13,14.9514]
[1743563779565,19.77262931,125.17,125.13,33.60104886]
[1743563779770,19.77262931,125.17,125.16,20.0]
[1743563780139,19.77262931,125.17,125.16,38.933972]
[1743563783271,1e-08,125.18,125.17,33.756772]
[1743563783662,1e-08,125.18,125.17,41.745872]
[1743563786884,1e-08,125.18,125.17,122.645872]
[1743563788184,11.53167463,125.19,125.17,142.645872]
[1743563788387,1e-08,125.19,125.17,143.145872]
[1743563788551,1e-08,125.19,125.18,30.0424095]
[1743563790261,1e-08,125.19,125.18,60.0424095]
[1743563791488,1e-08,125.19,125.18,68.0308095]
[1743563792687,1e-08,125.19,125.18,148.9308095]
[1743563795985,15.69836934,125.2,125.18,148.9308095]
[1743563797066,9.99836934,125.2,125.18,148.9308095]
[1743563797263,1.5432,125.25,125.24,0.28432314]
[1743563797264,0.03,125.25,125.24,0.28432314]
[1743563797491,0.03,125.3,125.26,0.28432314]
[1743563799273,0.03,125.3,125.26,8.26742314]
[1743563801307,0.03,125.3,125.26,12.23255518]
[1743563803091,0.03,125.3,125.26,11.94823204]
[1743563811093,0.03,125.3,125.28,20.0]
[1743563811388,0.03,125.3,125.28,26.96]
[1743563811985,0.03,125.3,125.26,3.96513204]
[1743563812184,0.03,125.3,125.26,6.96]
[1743563812907,0.03,125.3,125.26,10.85960791]
[1743563813495,0.03,125.3,125.26,10.92260791]
[1743563815699,0.03,125.3,125.26,18.90590791]
[1743563816015,0.03,125.3,125.26,3.96260791]
[1743563816218,0.03,125.3,125.27,6.96]
[1743563817187,0.03,125.3,125.26,3.96260791]
[1743563817510,0.03,125.3,125.26,10.92260791]
[1743563821120,0.03,125.3,125.26,18.90590791]
[1743563821293,0.03,125.3,125.26,10.92260791]
[1743563823318,10.2334835,125.3,125.26,0.063]
[1743563823622,1.6585,125.28,125.26,0.063]
[1743563825224,9.6408,125.28,125.26,0.063]
[1743563827632,19.8442835,125.28,125.26,0.063]
[1743563827837,17.8172835,125.27,125.19,92.6558062]
[1743563828012,10.2034835,125.24,125.2,30.0]
[1743563828214,10.2034835,125.25,125.2,30.0]
[1743563828517,10.2034835,125.25,125.2,34.05228067]
[1743563828723,10.2034835,125.25,125.2,4.05228067]
[1743563829014,10.2034835,125.25,125.19,6.96]
[1743563829323,18.1877835,125.25,125.19,14.9478]
[1743563830424,18.1877835,125.25,125.19,6.96]
[1743563832406,18.1877835,125.25,125.19,11.00271456]
[1743563835021,18.1877835,125.25,125.19,18.99051456]
[1743563837731,18.1877835,125.25,125.19,19.05351456]
[1743563839141,7.9833,125.26,125.19,19.05351456]
[1743563839326,18.1867835,125.26,125.19,19.05351456]
[1743563841533,7.9833,125.26,125.19,25.38791456]
[1743563841726,7.9833,125.26,125.2,18.933972]
[1743563842839,7.9833,125.26,125.2,26.920672]
[1743563843854,7.9833,125.26,125.2,7.9867]
[1743563844634,18.1867835,125.26,125.2,7.9867]
[1743563846931,10.2034835,125.25,125.2,6.96]
[1743563847527,7.9846,125.24,125.2,6.96]
[1743563848616,82.2385,125.27,125.2,6.96]
[1743563848818,1.5385,125.27,125.21,18.933972]
[1743563849033,1.5385,125.27,125.21,100.22870266]
[1743563849545,1.5385,125.27,125.22,7.9859]
[1743563850266,0.03,125.26,125.22,7.9859]
[1743563855467,10.2334835,125.26,125.21,74.80363066]
[1743563855674,10.2334835,125.26,125.21,81.76363066]
[1743563855854,10.2334835,125.26,125.22,20.0]
[1743563856274,10.2334835,125.26,125.21,6.96]
[1743563856570,10.2034835,125.24,125.21,6.96]
[1743563856736,10.2034835,125.24,125.19,4.10571456]
[1743563856940,7.9846,125.24,125.19,11.06571456]
[1743563863772,7.9846,125.24,125.19,19.05351456]
[1743563864982,7.9846,125.24,125.19,11.06571456]
[1743563867258,7.9846,125.24,125.19,19.05341456]
[1743563868188,7.984,125.25,125.19,19.05341456]
[1743563868789,18.1874835,125.25,125.19,11.06571456]
[1743563869363,10.2034835,125.24,125.19,11.06571456]
[1743563869693,34.4702,125.25,125.19,0.063]
[1743563869694,11.7389835,125.23,125.19,0.063]
[1743563869856,10.2034835,125.22,125.19,0.063]
[1743563870177,7.9865,125.21,125.19,0.063]
[1743563873481,1.5355,125.23,125.19,0.063]
[1743563874182,9.5208,125.23,125.19,0.063]
[1743563877783,19.7242835,125.23,125.19,0.063]
[1743563877977,10.2034835,125.22,125.19,0.063]
[1743563878785,7.9865,125.21,125.19,0.063]
[1743563878963,10.2034835,125.2,125.19,0.063]
[1743563880884,18.1906835,125.2,125.19,0.063]
[1743563882766,36.84033236,125.2,125.19,0.063]
[1743563883483,18.1906835,125.2,125.19,0.063]
[1743563883665,36.84033236,125.2,125.19,0.063]
[1743563886086,7.9872,125.2,125.19,0.063]
[1743563886394,1.5355,125.23,125.19,0.063]
[1743563886568,9.521,125.23,125.19,0.063]
[1743563886894,1.5355,125.23,125.19,0.063]
[1743563887077,0.03,125.26,125.19,6.6094]
[1743563888309,8.0133,125.26,125.2,7.9872]
[1743563888506,8.0133,125.26,125.21,6.96]
[1743563889696,18.2167835,125.26,125.21,6.96]
[1743563891815,8.0133,125.26,125.21,6.96]
[1743563892014,18.2167835,125.26,125.21,6.96]
[1743563900121,8.0133,125.26,125.21,6.96]
[1743563900301,18.2167835,125.26,125.21,6.96]
[1743563903416,10.2034835,125.25,125.21,6.96]
[1743563904626,7.9846,125.24,125.21,6.96]
[1743563905625,7.9846,125.24,125.19,6.6094]
[1743563905827,7.9846,125.24,125.19,13.5694]
[1743563906016,7.9846,125.24,125.19,21.5571]
[1743563906933,8.0133,125.26,125.19,21.5571]
[1743563910036,0.03,125.26,125.2,18.933972]
[1743563911220,0.03,125.26,125.21,7.9865]
[1743563917936,0.03,125.26,125.2,101.72450266]
[1743563918140,0.03,125.26,125.21,6.96]
[1743563919842,10.2334835,125.26,125.21,6.96]
[1743563920025,7.984,125.25,125.21,6.96]
[1743563921541,18.1874835,125.25,125.21,6.96]
[1743563921937,10.2034835,125.24,125.21,6.96]
[1743563922135,27.944,125.25,125.19,0.063]
[1743563922136,11.8374835,125.23,125.19,0.063]
[1743563922943,11.8374835,125.23,125.2,0.063]
[1743563923447,7.9859,125.22,125.2,0.063]
[1743563924046,9.6194,125.23,125.2,0.063]
[1743563924244,1.634,125.23,125.2,0.063]
[1743563924550,7.9843,125.25,125.2,0.063]
[1743563925045,18.1877835,125.25,125.2,0.063]
[1743563925642,10.2034835,125.24,125.2,0.063]
[1743563926144,18.1885835,125.24,125.2,0.063]
[1743563931868,10.2034835,125.23,125.2,0.063]
[1743563932162,27.9467,125.24,125.2,0.063]
[1743563932343,10.2034835,125.23,125.2,0.063]
[1743563933062,7.9859,125.22,125.2,0.063]
[1743563934967,10.2034835,125.21,125.2,0.063]
[1743563935466,18.1899835,125.21,125.2,0.063]
[1743563935840,36.83963236,125.21,125.2,0.063]
[1743563936569,37.1239555,125.21,125.2,0.063]
[1743563937555,117.8239555,125.21,125.2,0.063]
[1743563937772,119.3560555,125.21,125.2,0.063]
[1743563937972,0.28432314,125.2,125.19,0.063]
[1743563938146,91.18780664,125.2,125.19,0.063]
[1743563939272,99.17500664,125.2,125.19,0.063]
[1743563946365,117.8246555,125.2,125.19,0.063]
[1743563946882,117.8546555,125.2,125.18,0.063]
[1743563947192,0.28432314,125.16,125.13,0.063]
[1743563947485,10.2034835,125.14,125.13,0.063]
[1743563948878,18.1944835,125.14,125.13,0.063]
[1743563950086,36.84413236,125.14,125.13,0.063]
[1743563950950,37.1284555,125.14,125.13,0.063]
[1743563954072,117.8284555,125.14,125.13,0.063]
[1743563954276,119.4569555,125.14,125.13,0.063]
[1743563955675,38.7569555,125.14,125.13,0.063]
[1743563958692,99.633972,125.13,125.11,0.063]
[1743563958895,116.7974555,125.12,125.11,0.063]
[1743563960160,124.7897555,125.12,125.11,0.063]
[1743563962790,44.0897555,125.12,125.11,0.063]
[1743563964865,18.933972,125.11,125.1,0.063]
[1743563965067,20.476372,125.09,125.08,0.063]
[1743563965278,38.933972,125.07,125.06,0.063]
[1743563965603,49.1374555,125.07,125.06,0.063]
[1743563965885,57.1329555,125.07,125.06,0.063]
[1743563966283,29.1374555,125.06,125.05,0.063]
[1743563966873,37.1335555,125.06,125.05,0.063]
[1743563967272,137.9186895,125.06,125.01,0.063]
[1743563967580,28.85313236,125.02,125.01,0.063]
[1743563968999,18.2021835,125.02,125.01,0.063]
[1743563970470,18.48650664,125.02,125.01,0.063]
[1743563970793,0.14216157,125.01,124.98,0.063]
[1743563971091,69.66706636,124.99,124.98,0.063]
[1743563971289,69.9513895,124.99,124.98,0.063]
[1743563972272,69.9513895,124.99,124.98,0.0001]
[1743563972891,77.9519895,124.99,124.98,0.0001]
[1743563973095,18.933972,124.98,124.97,0.063]
[1743563973299,204.5513895,124.98,124.97,0.063]
[1743563974377,232.5557895,124.98,124.95,0.063]
[1743563974702,28.85313236,124.96,124.95,0.063]
[1743563974993,29.1374555,124.96,124.95,0.063]
[1743563977400,37.1399555,124.96,124.95,0.063]
[1743563981521,44.0999555,124.96,124.95,0.063]
[1743563983091,37.1399555,124.96,124.95,0.063]
[1743563986784,153.533972,124.95,124.91,0.063]
[1743563986989,29.1374555,124.92,124.91,0.063]
[1743563987402,69.9513895,124.92,124.91,0.063]
[1743563988414,77.9564895,124.92,124.91,0.063]
[1743563989213,18.933972,124.91,124.86,6.6865]
[1743563989418,29.1374555,124.91,124.86,6.6865]
[1743563990806,37.1431555,124.91,124.86,6.6865]
[1743563991004,18.2091835,124.91,124.86,6.6865]
[1743563991193,37.1431555,124.91,124.86,6.6865]
[1743563992223,26.65534886,124.91,124.86,6.6865]
[1743563992525,36.85883236,124.91,124.86,6.6865]
[1743563993323,18.2088835,124.92,124.86,21.6753]
[1743563993527,10.2034835,124.91,124.86,21.6753]
[1743563994119,10.2034835,124.91,124.86,13.6665]
[1743563995319,18.2091835,124.91,124.86,21.6751]
[1743563998503,8.0051,124.92,124.86,21.6751]
[1743563998709,10.2034835,124.91,124.86,21.6751]
[1743563999321,10.2034835,124.91,124.86,13.6665]
[1743564001149,18.2091835,124.91,124.86,13.6665]
[1743564004761,18.2091835,124.91,124.86,21.6753]
[1743564005061,18.2091835,124.91,124.86,13.6665]
[1743564005857,36.92183236,124.91,124.86,6.6865]
[1743564006059,37.2061555,124.91,124.86,6.6865]
[1743564006254,0.28432314,124.89,124.86,6.6865]
[1743564006554,10.2034835,124.87,124.86,0.063]
[1743564006723,18.2117835,124.87,124.86,0.063]
[1743564010854,36.86143236,124.87,124.86,0.063]
[1743564011234,37.1457555,124.87,124.86,0.063]
[1743564014748,117.8457555,124.87,124.86,0.063]
[1743564018978,88.7083,124.87,124.86,0.063]
[1743564019148,98.9117835,124.87,124.86,0.063]
[1743564019348,117.8457555,124.87,124.86,0.063]
[1743564020760,158.6596895,124.87,124.86,0.063]
[1743564022976,117.8457555,124.87,124.86,0.063]
[1743564023203,117.56143236,124.87,124.86,0.063]
[1743564023484,98.9117835,124.87,124.86,0.063]
[1743564023693,117.56143236,124.87,124.86,0.063]
[1743564030165,158.6596895,124.87,124.86,0.063]
[1743564031182,10.2034835,124.83,124.82,0.03]
[1743564032195,18.2142835,124.83,124.82,0.03]
[1743564032394,10.2034835,124.83,124.82,0.03]
[1743564032772,18.2142835,124.83,124.82,0.03]
[1743564035799,36.86393236,124.83,124.82,0.03]
[1743564037804,18.2142835,124.83,124.82,0.03]
[1743564040987,10.2034835,124.83,124.82,0.03]
[1743564041192,90.9034835,124.85,124.82,0.03]
[1743564041391,80.7,124.85,124.82,7.01]
[1743564041592,18.64964886,124.89,124.83,8.0229]
[1743564041812,10.2034835,124.88,124.83,8.0229]
[1743564042108,10.2034835,124.87,124.83,16.0336]
[1743564042508,10.2664835,124.87,124.83,16.0336]
[1743564042708,10.2034835,124.86,124.83,8.0229]
[1743564042914,10.2034835,124.85,124.83,8.0229]
[1743564043293,10.2034835,124.85,124.83,6.5007]
[1743564045115,18.2127835,124.86,124.83,6.5007]
[1743564049811,10.2034835,124.85,124.83,6.5007]
[1743564053528,18.2126835,124.86,124.83,6.5007]
[1743564053926,0.063,124.87,124.83,6.5007]
[1743564053927,18.2750835,124.87,124.83,6.5007]
[1743564054625,10.2034835,124.86,124.83,6.5007]
[1743564054929,10.2034835,124.86,124.83,6.5307]
[1743564055132,10.2664835,124.86,124.83,6.5307]
[1743564056951,18.2755835,124.86,124.83,6.5307]
[1743564061261,0.063,124.86,124.83,6.5307]
[1743564061459,10.2664835,124.86,124.83,6.5307]
[1743564061653,10.2034835,124.85,124.83,6.5307]
[1743564062191,10.2034835,124.85,124.83,0.03]
[1743564062583,10.2034835,124.84,124.83,0.03]
[1743564063684,10.2034835,124.85,124.83,0.03]
[1743564063883,18.2756835,124.86,124.83,0.03]
[1743564064084,8.0722,124.86,124.83,0.03]
[1743564067596,18.2756835,124.86,124.83,0.03]
[1743564068291,10.2034835,124.85,124.83,0.03]
[1743564068906,18.2135835,124.85,124.83,0.03]
[1743564069495,8.0101,124.85,124.83,0.03]
[1743564069793,8.0722,124.86,124.83,0.03]
[1743564070177,18.2756835,124.86,124.83,0.03]
[1743564071572,0.063,124.86,124.83,0.03]
[1743564075041,10.2664835,124.86,124.83,0.03]
[1743564075245,0.063,124.86,124.83,0.03]
[1743564083274,10.2664835,124.86,124.83,0.03]
[1743564085386,18.2755835,124.86,124.83,0.03]
[1743564085691,0.063,124.86,124.83,0.03]
[1743564096198,10.2664835,124.86,124.83,6.99]
[1743564097202,10.2034835,124.84,124.83,0.03]
[1743564098280,18.2136835,124.84,124.83,0.03]
[1743564105422,36.86333236,124.84,124.83,0.03]
[1743564105706,38.6512555,124.84,124.83,0.03]
[1743564106906,18.933972,124.83,124.82,0.03]
[1743564107117,35.4451555,124.83,124.82,0.03]
[1743564107494,35.4451555,124.83,124.81,0.03]
[1743564107800,10.48780664,124.82,124.81,0.03]
[1743564108306,0.28432314,124.79,124.77,0.03]
[1743564108511,28.85313236,124.78,124.77,0.03]
[1743564109213,36.86723236,124.78,124.77,0.03]
[1743564112786,37.1515555,124.78,124.77,0.03]
[1743564112990,99.34964886,124.77,124.73,0.03]
[1743564113193,10.2034835,124.74,124.73,0.03]
[1743564113908,28.85313236,124.74,124.73,0.03]
[1743564114808,36.86973236,124.74,124.73,0.03]
[1743564121604,10.2034835,124.74,124.73,0.03]
[1743564121809,10.2034835,124.75,124.73,0.03]
[1743564122718,90.9034835,124.76,124.73,0.03]
[1743564123095,10.2034835,124.75,124.73,0.03]
[1743564126517,10.2034835,124.74,124.73,0.03]
[1743564126843,18.2200835,124.74,124.73,0.03]
[1743564127832,10.2034835,124.74,124.73,0.03]
[1743564128034,10.2034835,124.75,124.73,0.03]
[1743564129825,18.2194835,124.75,124.73,0.03]
[1743564131509,18.2190835,124.76,124.73,0.03]
[1743564131832,10.2034835,124.76,124.73,0.03]
[1743564132015,98.9813835,124.77,124.73,0.03]
[1743564132416,10.2034835,124.76,124.73,0.03]
[1743564133024,18.2189835,124.76,124.73,0.03]
[1743564140751,8.0778,124.77,124.73,0.03]
[1743564141037,18.2812835,124.77,124.73,0.03]
[1743564142115,10.2034835,124.76,124.73,0.03]
[1743564142518,18.2192835,124.76,124.73,0.03]
[1743564142831,10.2034835,124.75,124.73,0.03]
[1743564143216,8.0158,124.76,124.73,0.03]
[1743564143217,10.2034835,124.74,124.73,0.03]
[1743564144542,18.2200835,124.74,124.73,0.03]
[1743564145634,8.0166,124.74,124.73,0.03]
[1743564147120,18.2200835,124.74,124.73,0.03]
[1743564147636,36.86973236,124.74,124.73,0.03]
[1743564148737,117.8540555,124.74,124.73,0.03]
[1743564149340,158.6679895,124.74,124.73,0.03]
[1743564149833,117.8540555,124.74,124.73,0.03]
[1743564150239,158.6679895,124.74,124.73,0.03]
[1743564150846,117.8540555,124.74,124.73,0.03]
[1743564152942,158.6679895,124.74,124.73,0.03]
[1743564153841,77.9679895,124.74,124.73,0.03]
[1743564154028,10.48780664,124.71,124.7,0.03]
[1743564155131,18.50640664,124.71,124.7,0.03]
[1743564157234,38.7385555,124.71,124.7,0.03]
[1743564158947,26.66784886,124.72,124.7,0.03]
[1743564159247,18.2216835,124.72,124.7,0.03]
[1743564159632,88.7175,124.73,124.7,0.03]
[1743564160039,98.9209835,124.73,124.7,0.03]
[1743564160747,10.2034835,124.72,124.7,0.03]
[1743564161053,88.7175,124.73,124.7,0.03]
[1743564161355,90.9034835,124.73,124.7,0.03]
[1743564161559,80.7,124.73,124.7,0.03]
[1743564162439,10.2034835,124.74,124.7,0.03]
[1743564162845,18.2187835,124.76,124.7,0.03]
[1743564163149,8.0153,124.76,124.7,0.03]
[1743564163360,18.2187835,124.76,124.7,0.03]
[1743564167158,18.2187835,124.76,124.7,8.0492]
[1743564169657,8.0779,124.77,124.7,82.85283066]
[1743564169834,0.063,124.77,124.71,7.5558]
[1743564170038,0.063,124.77,124.72,6.96]
[1743564171167,8.0778,124.77,124.72,6.96]
[1743564171864,8.0778,124.77,124.72,14.9774]
[1743564177566,8.0778,124.77,124.72,6.96]
[1743564180379,10.2034835,124.75,124.71,87.79973066]
[1743564180777,29.6602,124.77,124.71,87.79973066]
[1743564180956,10.2034835,124.76,124.71,87.79973066]
[1743564181152,39.8636835,124.77,124.71,87.79973066]
[1743564181352,10.2034835,124.76,124.71,87.79973066]
[1743564182179,10.2034835,124.75,124.71,81.76363066]
[1743564183080,10.2034835,124.76,124.71,81.76363066]
[1743564184376,31.8488835,124.77,124.71,14.9785]
[1743564184564,8.0153,124.76,124.71,14.9785]
[1743564184885,8.0779,124.77,124.71,14.9785]
[1743564186697,8.0779,124.77,124.71,15.0085]
[1743564187364,0.063,124.76,124.71,15.0085]
[1743564190784,0.063,124.76,124.72,6.3209]
[1743564192105,0.063,124.76,124.72,14.3383]
[1743564195679,0.063,124.76,124.72,6.3209]
[1743564195884,0.063,124.76,124.73,6.96]
[1743564197378,0.063,124.76,124.73,14.9772]
[1743564204027,0.063,124.76,124.73,6.96]
[1743564204223,0.063,124.76,124.72,0.03]
[1743564204394,0.063,124.76,124.73,6.96]
[1743564205306,8.0783,124.76,124.73,6.96]
[1743564207443,0.063,124.76,124.73,6.96]
[1743564215843,0.063,124.76,124.72,12.43807418]
[1743564215844,20.28432314,124.73,124.72,12.43807418]
[1743564216036,80.7,124.74,124.72,12.43807418]
[1743564216217,10.2034835,124.73,124.72,12.43807418]
[1743564217036,10.2034835,124.73,124.72,0.03]
[1743564218145,18.2207835,124.73,124.72,0.03]
[1743564218516,36.87043236,124.73,124.72,0.03]
[1743564230356,18.2207835,124.73,124.72,0.03]
[1743564231856,8.0173,124.73,124.72,0.03]
[1743564235150,18.2207835,124.73,124.72,0.03]
[1743564237064,8.0173,124.73,124.72,0.03]
[1743564238076,8.0803,124.73,124.72,0.03]
[1743564238849,18.2837835,124.73,124.72,0.03]
[1743564240736,0.063,124.73,124.72,0.03]
[1743564241360,0.063,124.73,124.72,1.5946]
[1743564242562,0.063,124.73,124.72,20.528572]
[1743564242742,0.063,124.73,124.72,28.546472]
[1743564242941,0.063,124.76,124.72,143.39500266]
[1743564243131,0.063,124.76,124.74,18.933972]
[1743564243338,0.063,124.76,124.75,25.893972]
[1743564244883,0.063,124.76,124.75,33.909972]
[1743564247182,0.063,124.76,124.75,108.71360266]
[1743564248472,0.063,124.76,124.75,100.69760266]
[1743564248684,0.063,124.76,124.75,81.76363066]
[1743564253186,0.063,124.76,124.75,6.96]
[1743564254284,0.063,124.76,124.75,33.909972]
[1743564257589,8.0098,124.85,124.78,20.0]
[1743564257796,8.0098,124.85,124.79,26.96]
[1743564258790,8.0098,124.85,124.79,34.9729]
[1743564260591,18.2132835,124.85,124.79,34.9729]
[1743564261294,18.2132835,124.85,124.79,39.00053315]
[1743564264595,8.0098,124.85,124.79,39.00053315]
[1743564268100,18.2132835,124.85,124.79,30.98763315]
[1743564268601,18.2132835,124.85,124.79,24.02763315]
[1743564268803,18.2132835,124.85,124.8,6.96]
[1743564269384,18.2132835,124.85,124.79,24.02763315]
[1743564269683,18.2132835,124.85,124.8,6.96]
[1743564283115,10.2664835,124.84,124.78,81.08553066]
[1743564283409,10.2034835,124.83,124.78,74.80363066]
[1743564283707,10.2034835,124.83,124.79,6.96]
[1743564285401,8.0115,124.82,124.79,6.96]
[1743564286309,10.2034835,124.81,124.77,0.03]
[1743564286505,10.2034835,124.81,124.77,6.99]
[1743564287305,8.0128,124.8,124.77,6.99]
[1743564287699,8.0128,124.8,124.77,0.03]
[1743564287899,8.0128,124.8,124.77,6.99]
[1743564289515,9.6154,124.82,124.77,6.99]
[1743564290720,9.6154,124.82,124.77,15.0047]
[1743564296108,9.6154,124.82,124.77,6.99]
[1743564299131,9.6154,124.82,124.77,15.0046]
[1743564300652,1.6037,124.82,124.77,15.0046]
[1743564300830,8.011,124.83,124.77,15.0046]
[1743564301031,10.2034835,124.81,124.77,0.03]
[1743564301233,11.8074835,124.81,124.77,0.03]
[1743564301540,10.2034835,124.8,124.77,0.03]
[1743564301743,10.2034835,124.78,124.77,0.03]
[1743564302414,28.85313236,124.78,124.77,0.03]
[1743564302729,38.6810555,124.78,124.77,0.03]
[1743564303029,38.64964886,124.76,124.75,0.03]
[1743564303232,48.85313236,124.76,124.75,0.03]
[1743564304820,56.86843236,124.76,124.75,0.03]
[1743564305619,57.1527555,124.76,124.75,0.03]
[1743564306930,20.0,124.76,124.75,0.03]
[1743564307626,1.5295,124.78,124.75,0.03]
[1743564308421,11.7329835,124.78,124.75,0.03]
[1743564309139,19.7470835,124.78,124.75,0.03]
[1743564309639,11.7329835,124.78,124.75,0.03]
[1743564310811,19.7470835,124.78,124.75,0.03]
[1743564313735,10.2034835,124.77,124.75,0.03]
[1743564315413,18.2185835,124.77,124.75,0.03]
[1743564317349,10.2034835,124.76,124.75,0.03]
[1743564319238,18.2187835,124.76,124.75,0.03]
[1743564321647,26.66434886,124.77,124.75,0.03]
[1743564321830,10.2034835,124.76,124.75,0.03]
[1743564323022,18.2181835,124.77,124.75,0.03]
[1743564323250,8.0147,124.77,124.75,0.03]
[1743564326154,18.2181835,124.77,124.75,0.03]
[1743564331649,10.2034835,124.76,124.75,0.03]
[1743564334753,18.2187835,124.76,124.75,0.03]
[1743564336458,37.1527555,124.76,124.75,0.03]
[1743564337463,44.8216555,124.76,124.75,0.0001]
[1743564345970,34.618172,124.76,124.75,0.0001]
[1743564346266,44.8216555,124.76,124.75,0.0001]
[1743564347859,26.66494886,124.76,124.75,0.0001]
[1743564348048,8.0777,124.77,124.75,0.0001]
[1743564348254,18.2811835,124.77,124.75,0.0001]
[1743564348662,8.0777,124.77,124.75,0.0001]
[1743564349169,18.2811835,124.77,124.75,0.0001]
[1743564349542,0.063,124.77,124.75,0.0001]
[1743564349746,0.063,124.77,124.76,6.96]
[1743564349955,0.063,124.77,124.76,13.2421]
[1743564360983,0.063,124.77,124.75,0.0001]
[1743564361153,10.2034835,124.76,124.75,0.0001]
[1743564362275,36.86843236,124.76,124.75,0.0001]
[1743564364479,117.56843236,124.76,124.75,0.0001]
[1743564365777,37.1527555,124.76,124.75,0.0001]
[1743564377889,37.6527555,124.76,124.75,0.0001]
[1743564378806,37.1527555,124.76,124.75,0.0001]
[1743564378979,37.6527555,124.76,124.75,0.0001]
[1743564380401,37.1527555,124.76,124.75,0.0001]
[1743564396133,36.86843236,124.76,124.75,0.0001]
[1743564396707,37.1527555,124.76,124.75,0.0001]
[1743564405249,37.2157555,124.76,124.75,0.0001]
[1743564406145,18.2817835,124.76,124.75,0.0001]
[1743564406349,8.0783,124.76,124.75,0.0001]
[1743564406567,18.2817835,124.76,124.75,0.0001]
[1743564409817,8.0783,124.76,124.75,0.0001]
[1743564420854,18.2817835,124.76,124.75,0.0001]
[1743564421056,36.93143236,124.76,124.75,0.0001]
[1743564421247,37.2157555,124.76,124.75,0.0001]